bitfinex-derivatives/quotes_ETHF0:USTF0_20240822
["timestamp","ask_amount","ask_price","bid_price","bid_amount"]
[1724333915779,7.60810464,2626.0,2625.9,0.00707075]
[1724333916178,10.1405,2626.0,2625.9,0.00707075]
[1724333917887,0.38087,2625.0,2624.5,3.58872]
[1724333918092,0.38084,2625.2,2624.6,0.38091]
[1724333918292,0.38084,2625.2,2624.5,3.2078]
[1724333918293,0.38082,2625.3,2624.7,0.75639]
[1724333918787,0.00571799,2625.3,2624.8,3.58868]
[1724333919181,0.38653799,2625.3,2624.7,0.76345483]
[1724333919792,0.38653799,2625.3,2624.8,0.38088]
[1724333920183,0.38083,2625.2,2624.7,0.76346483]
[1724333920686,0.00571799,2625.3,2624.7,0.38256483]
[1724333920886,0.38085,2625.1,2624.7,0.38256483]
[1724333921087,0.38086,2625.0,2624.7,0.38256483]
[1724333921685,4.16556799,2625.3,2624.7,0.00706483]
[1724333921878,0.38089,2624.8,2624.7,0.00706483]
[1724333923583,10.14271,2624.8,2624.7,0.00706483]
[1724333923783,0.38097,2624.3,2623.9,0.3756]
[1724333923992,0.38095,2624.4,2623.9,0.75661]
[1724333924585,4.089,2624.6,2623.9,0.3756]
[1724333924792,4.09355977,2624.6,2624.1,0.38098]
[1724333924992,4.47447977,2624.6,2624.1,0.38098]
[1724333925192,0.38093,2624.5,2624.0,0.381]
[1724333925386,4.09355977,2624.6,2624.1,3.2078]
[1724333925592,0.38093,2624.5,2624.2,0.3659]
[1724333925899,4.47447977,2624.6,2624.2,0.3659]
[1724333926093,4.09355977,2624.6,2624.2,0.3659]
[1724333926295,4.09355977,2624.6,2624.3,0.38095]
[1724333926490,4.09355977,2624.6,2624.4,0.38094]
[1724333926691,4.09355977,2624.6,2624.2,0.3659]
[1724333926891,4.47447977,2624.6,2624.2,0.74687]
[1724333927088,0.00455977,2624.6,2624.3,0.38096]
[1724333927289,0.00455977,2624.6,2624.2,0.3659]
[1724333927489,0.38547977,2624.6,2624.2,0.74687]
[1724333927998,0.00455977,2624.6,2624.3,0.38096]
[1724333928194,0.38547977,2624.6,2624.2,0.74686]
[1724333928387,0.38093,2624.5,2624.2,0.3659]
[1724333928799,0.38547977,2624.6,2624.2,0.74687]
[1724333929192,0.38093,2624.5,2624.2,0.74687]
[1724333929392,0.00455977,2624.6,2624.3,0.38096]
[1724333929692,0.38094,2624.5,2624.2,0.3659]
[1724333929900,0.38547977,2624.6,2624.2,0.74687]
[1724333930288,0.38547977,2624.6,2624.3,0.38096]
[1724333930596,0.38093,2624.5,2624.2,0.74687]
[1724333930904,0.38547977,2624.6,2624.2,0.74687]
[1724333931096,0.00455977,2624.6,2624.3,3.2078]
[1724333931287,0.00455977,2624.6,2624.4,0.38094]
[1724333931597,0.38547977,2624.6,2624.3,0.38095]
[1724333932194,0.38547977,2624.6,2624.4,0.38094]
[1724333932195,0.00455977,2624.6,2624.4,0.38094]
[1724333932704,0.00455977,2624.6,2624.5,0.38093]
[1724333932998,0.38083,2625.2,2624.9,0.38087]
[1724333933194,0.00571799,2625.3,2624.8,0.38088]
[1724333933396,0.95208,2625.2,2624.6,0.3616]
[1724333933702,0.38089,2624.8,2624.6,0.3616]
[1724333933896,0.00301432,2624.8,2624.6,0.3616]
[1724333934086,0.00301432,2624.8,2624.7,0.3809]
[1724333934288,0.00301432,2624.8,2624.6,0.3616]
[1724333934494,0.00301432,2624.8,2624.2,0.3659]
[1724333934702,0.38091,2624.7,2624.4,0.38094]
[1724333934890,0.38092,2624.6,2624.4,0.38094]
[1724333935488,0.38091,2624.7,2624.4,0.38094]
[1724333935891,0.3809,2624.7,2624.5,0.38092]
[1724333936093,0.38391432,2624.8,2624.5,0.38092]
[1724333936401,0.38094,2624.5,2624.2,0.3659]
[1724333936704,0.38094,2624.5,2624.2,0.74687]
[1724333936900,0.38094,2624.5,2624.3,0.38096]
[1724333937496,0.38094,2624.4,2624.2,0.74687]
[1724333937802,0.38095,2624.4,2624.2,0.3659]
[1724333937999,0.38099,2624.1,2624.0,0.3616]
[1724333938195,0.381,2624.0,2623.9,0.00416012]
[1724333938701,4.1922,2624.0,2623.9,0.00416012]
[1724333939400,0.381,2624.1,2623.9,0.00416012]
[1724333940102,0.381,2624.0,2623.9,0.00416012]
[1724333940304,0.38099,2624.1,2623.9,0.00416012]
[1724333940698,0.381,2624.0,2623.9,0.00416012]
[1724333941313,0.38097,2624.3,2623.9,0.00416012]
[1724333941607,0.38098,2624.2,2623.9,0.00416012]
[1724333941802,4.51181,2624.6,2623.9,0.00416012]
[1724333942003,0.38097,2624.3,2623.9,0.38518012]
[1724333942399,0.38095,2624.4,2624.0,0.381]
[1724333942604,0.38093,2624.5,2623.9,0.00416012]
[1724333942805,0.38093,2624.5,2624.1,0.38098]
[1724333943201,0.38095,2624.4,2624.0,0.381]
[1724333943410,0.38094,2624.5,2624.1,0.38098]
[1724333943601,0.38092,2624.6,2624.2,0.3768]
[1724333944308,0.38091,2624.6,2624.3,0.38095]
[1724333944500,0.38091,2624.6,2624.3,0.3525]
[1724333945010,0.38093,2624.5,2624.2,0.3768]
[1724333945301,0.95226,2624.7,2624.0,0.3525]
[1724333945505,0.38097,2624.3,2624.0,0.3525]
[1724333946107,0.38097,2624.2,2624.0,0.3525]
[1724333946309,0.38097,2624.3,2624.0,0.3525]
[1724333946602,0.95229,2624.6,2624.0,0.3525]
[1724333946806,0.38097,2624.3,2624.0,0.3525]
[1724333947106,0.38097,2624.3,2624.0,0.7335]
[1724333947306,0.38097,2624.2,2624.0,0.3525]
[1724333947504,0.38097,2624.3,2624.0,0.3525]
[1724333947700,0.38098,2624.2,2624.0,0.3525]
[1724333948101,0.38096,2624.3,2624.0,0.3525]
[1724333948300,0.95226,2624.7,2623.9,0.00416012]
[1724333948511,0.381,2624.0,2623.9,0.00416012]
[1724333950899,1.33351,2624.0,2623.9,0.00416012]
[1724333951103,4.1922,2624.0,2623.9,0.00416012]
[1724333952213,0.381,2624.1,2623.9,0.00416012]
[1724333952616,0.381,2624.0,2623.9,0.00416012]
[1724333953106,4.1922,2624.0,2623.9,0.00416012]
[1724333953507,8.35251,2624.0,2623.9,0.00416012]
[1724333953721,14.30502,2624.0,2623.9,1e-08]
[1724333953904,16.83473087,2624.0,2623.9,1e-08]
[1724333954115,0.38115,2623.0,2622.8,0.3576]
[1724333954415,4.16055,2623.4,2622.8,0.73877]
[1724333954613,0.38114,2623.1,2622.8,0.73877]
[1724333955012,3.2078,2623.4,2622.9,0.38115]
[1724333955215,3.2078,2623.4,2622.8,0.74314081]
[1724333955509,3.2078,2623.4,2622.8,0.36197081]
[1724333955906,0.95273,2623.5,2622.8,0.36197081]
[1724333956110,9.7345,2623.6,2623.0,0.38114]
[1724333956111,0.38111,2623.3,2623.0,0.38114]
[1724333956304,4.4695,2623.6,2622.8,0.36197081]
[1724333956606,0.3811,2623.4,2623.1,0.38113]
[1724333956812,0.38112,2623.2,2622.9,0.38115]
[1724333957210,0.38111,2623.3,2622.9,0.38115]
[1724333957411,0.38111,2623.3,2623.0,0.38114]
[1724333957816,5.42219,2623.6,2622.8,0.36197081]
[1724333957817,0.3811,2623.4,2623.1,0.38113]
[1724333958017,4.089,2623.6,2623.3,3.2078]
[1724333958317,4.089,2623.6,2623.4,0.75188]
[1724333958511,3.59456799,2623.7,2623.4,0.75188]
[1724333958707,3.21351799,2623.7,2623.4,0.3708]
[1724333958911,3.21351799,2623.7,2622.9,4.186]
[1724333958912,0.3811,2623.4,2623.1,0.38113]
[1724333959113,0.38111,2623.3,2623.0,0.75194]
[1724333959315,4.16616799,2623.7,2623.0,0.3708]
[1724333959618,0.38112,2623.2,2623.0,0.3708]
[1724333959817,0.95269,2623.5,2622.8,0.36197081]
[1724333960020,3.5701,2623.4,2622.8,0.36197081]
[1724333960207,0.9528,2623.2,2622.8,0.36197081]
[1724333960519,0.38116,2622.9,2622.8,0.00437081]
[1724333960720,0.38420714,2622.9,2622.8,0.00437081]
[1724333961113,0.00304714,2622.9,2622.8,3.81717081]
[1724333961620,0.38420714,2622.9,2622.8,0.00437081]
[1724333961812,0.00304714,2622.9,2622.8,0.00437081]
[1724333962513,0.00304714,2622.9,2622.8,4.19835081]
[1724333962823,0.00304714,2622.9,2622.8,3.81717081]
[1724333963022,0.00304714,2622.9,2622.8,0.00437081]
[1724333963215,0.38420714,2622.9,2622.8,0.00437081]
[1724333963816,8.35771714,2622.9,2622.8,0.00437081]
[1724333964217,7.40480714,2622.9,2622.8,0.00437081]
[1724333964821,3.59200714,2622.9,2622.8,0.00437081]
[1724333965023,0.38420714,2622.9,2622.8,0.00437081]
[1724333965411,0.00304714,2622.9,2622.8,9.19835081]
[1724333965617,0.00304714,2622.9,2622.8,3.81717081]
[1724333965819,0.00304714,2622.9,2622.8,0.00437081]
[1724333966020,0.38420714,2622.9,2622.8,0.00437081]
[1724333966226,4.19700714,2622.9,2622.8,0.00437081]
[1724333966817,5.14991714,2622.9,2622.8,0.00437081]
[1724333967923,4.19700714,2622.9,2622.8,0.00437081]
[1724333968122,0.38420714,2622.9,2622.8,0.00437081]
[1724333968716,4.19700714,2622.9,2622.8,0.00437081]
[1724333968921,0.38420714,2622.9,2622.8,0.00437081]
[1724333969225,4.19700714,2622.9,2622.8,0.00437081]
[1724333969923,0.00304714,2622.9,2622.8,0.00437081]
[1724333970123,0.00304714,2622.9,2622.8,9.19835081]
[1724333970324,0.00304714,2622.9,2622.8,4.19835081]
[1724333971124,0.00304714,2622.9,2622.8,9.19835081]
[1724333973217,0.00304714,2622.9,2622.8,10.15130081]
[1724333973635,0.38676799,2623.7,2623.4,0.38109]
[1724333973817,0.38106,2623.6,2623.3,0.3811]
[1724333974020,0.00571799,2623.7,2623.1,3.58892]
[1724333974325,0.00571799,2623.7,2623.1,0.38112]
[1724333974326,0.38109,2623.4,2623.1,0.38112]
[1724333974529,0.00414798,2623.4,2622.9,0.3603]
[1724333974726,0.00414798,2623.4,2623.1,0.38113]
[1724333975036,0.38523798,2623.4,2623.0,0.38114]
[1724333975326,0.38523798,2623.4,2623.1,0.38113]
[1724333975531,0.00414798,2623.4,2623.2,0.38111]
[1724333975737,0.00414798,2623.4,2623.0,3.2078]
[1724333976026,0.00414798,2623.4,2623.3,3.5889]
[1724333976427,0.00414798,2623.4,2623.3,12.4009]
[1724333976829,0.00571799,2623.7,2623.6,0.38106]
[1724333977219,0.00571799,2623.7,2623.6,7.40006]
[1724333977727,0.009897,2623.7,2623.6,7.40006]
[1724333978032,3.2078,2624.5,2623.6,12.019]
[1724333978331,0.38091,2624.7,2624.2,0.38096]
[1724333978629,0.38091,2624.6,2624.1,3.2078]
[1724333978830,5.76942,2625.1,2623.8,3.58882]
[1724333978831,3.2078,2624.8,2623.8,3.58882]
[1724333979032,0.38096,2624.3,2623.8,3.58882]
[1724333979220,0.00571799,2624.6,2623.8,3.2078]
[1724333979221,3.95971799,2624.6,2623.8,3.2078]
[1724333979532,0.38098,2624.2,2623.8,3.2078]
[1724333979720,0.38099,2624.1,2623.8,3.2078]
[1724333979926,1.32524,2624.5,2623.8,3.2078]
[1724333980122,0.381,2624.0,2623.7,0.3576]
[1724333980433,0.38105,2623.7,2623.4,0.00571799]
[1724333981036,0.95244,2624.2,2623.4,0.00571799]
[1724333981037,0.38104,2623.8,2623.4,0.00571799]
[1724333981336,0.38106,2623.6,2623.4,0.00571799]
[1724333981834,0.38105,2623.7,2623.4,0.00571799]
[1724333982227,0.38104,2623.8,2623.4,0.00571799]
[1724333982427,0.38106,2623.6,2623.4,0.00571799]
[1724333982623,0.95251,2624.0,2623.4,0.00571799]
[1724333982830,0.38105,2623.7,2623.4,0.00571799]
[1724333983224,0.38107,2623.6,2623.4,0.00571799]
[1724333984034,0.38105,2623.7,2623.4,0.00571799]
[1724333985222,0.38108,2623.5,2623.4,0.00571799]
[1724333985427,0.38106,2623.7,2623.4,0.00571799]
[1724333985626,0.38108,2623.5,2623.4,0.00571799]
[1724333986037,9.19308,2623.5,2623.4,0.00117035]
[1724333986230,6.05979178,2623.7,2623.4,0.00117035]
[1724333986434,0.3832,2623.7,2623.4,0.00117035]
[1724333986625,0.3622,2623.9,2623.5,0.38106]
[1724333986626,3.21201178,2623.9,2623.5,0.38106]
[1724333986825,3.21201178,2623.9,2623.4,0.00117035]
[1724333986826,0.38102,2623.9,2623.6,0.38106]
[1724333987023,0.38101,2624.0,2623.6,0.38105]
[1724333987222,5.67659178,2624.1,2623.5,0.3632]
[1724333987223,2.83359178,2624.2,2623.5,0.3632]
[1724333987423,0.381,2624.1,2623.8,0.38103]
[1724333987934,0.95248,2624.1,2623.5,0.3632]
[1724333988135,3.42127178,2624.1,2623.5,0.3632]
[1724333988336,0.38105,2623.7,2623.5,0.3632]
[1724333988536,2.46879178,2624.1,2623.5,0.3632]
[1724333988729,0.38102,2623.9,2623.6,0.38106]
[1724333988931,3.42127178,2624.1,2623.5,0.3632]
[1724333989236,2.46879178,2624.1,2623.5,0.3632]
[1724333989435,0.38103,2623.9,2623.5,0.74426]
[1724333989636,2.83359178,2624.2,2623.6,3.2078]
[1724333989839,5.67659178,2624.2,2623.5,0.74427]
[1724333990137,0.95252,2624.0,2623.5,0.3632]
[1724333990335,0.38106,2623.6,2623.5,0.3632]
[1724333990533,0.38106,2623.7,2623.5,0.3632]
[1724333990831,0.38106,2623.7,2623.4,0.38347035]
[1724333990832,0.38108,2623.5,2623.4,0.00117035]
[1724333992029,0.95262,2623.8,2623.4,0.00117035]
[1724333992230,0.38107,2623.6,2623.4,0.00117035]
[1724333992431,0.38105,2623.7,2623.4,0.38226035]
[1724333992636,0.38104,2623.8,2623.4,0.38225035]
[1724333992833,0.38105,2623.7,2623.4,0.00117035]
[1724333993030,0.38105,2623.7,2623.4,0.38226035]
[1724333993232,0.38107,2623.6,2623.4,0.00117035]
[1724333993737,0.38108,2623.5,2623.4,0.00117035]
[1724333994131,0.38107,2623.6,2623.4,0.00117035]
[1724333994543,5.67659178,2623.9,2623.4,0.38226035]
[1724333994740,0.38105,2623.7,2623.4,0.38226035]
[1724333994939,0.38106,2623.6,2623.4,0.00117035]
[1724333995239,0.38108,2623.5,2623.4,0.00117035]
[1724333995941,15.05248,2623.5,2623.4,0.00117035]
[1724333996643,11.57831046,2623.5,2623.4,0.00117035]
[1724333996836,14.09978,2623.5,2623.4,0.00117035]
[1724333997041,11.57827213,2623.5,2623.4,0.00117035]
[1724333997231,7.62424219,2623.5,2623.4,0.00117035]
[1724333997544,0.38108,2623.5,2623.4,0.00117035]
[1724333997732,2.85959978,2623.5,2623.4,0.00117035]
[1724333999237,0.38108,2623.5,2623.4,0.00117035]
[1724333999635,5.14578,2623.5,2623.4,0.00117035]
[1724333999838,7.62429978,2623.5,2623.4,0.00117035]
[1724334000348,0.38108,2623.5,2623.4,0.00117035]
[1724334001350,1.33378,2623.5,2623.4,0.00117035]
[1724334001647,2.85959978,2623.5,2623.4,0.00117035]
[1724334001844,0.38108,2623.5,2623.4,0.00117035]
[1724334002149,2.47851978,2623.7,2623.5,0.38108]
[1724334002338,5.68631978,2623.9,2623.6,0.38106]
[1724334002638,0.38104,2623.8,2623.6,0.38106]
[1724334002839,0.38107,2623.6,2623.4,0.38225035]
[1724334003145,0.38108,2623.5,2623.4,0.00117035]
[1724334003544,2.47851978,2623.8,2623.4,0.00117035]
[1724334003746,2.47851978,2623.8,2623.4,0.38226035]
[1724334003747,0.95259,2623.8,2623.4,0.38226035]
[1724334003945,2.47851978,2623.8,2623.4,0.00117035]
[1724334004159,5.68631978,2623.9,2623.4,0.38225035]
[1724334004451,3.2078,2623.9,2623.4,0.00117035]
[1724334004752,3.2078,2623.9,2623.5,0.38107]
[1724334005252,2.47851978,2624.0,2623.6,0.38106]
[1724334005440,0.38104,2623.8,2623.5,0.38107]
[1724334005747,3.43102978,2624.1,2623.4,0.38225035]
[1724334005748,0.38106,2623.7,2623.4,0.38225035]
[1724334006243,0.38108,2623.5,2623.4,0.00117035]
[1724334006547,1.33378,2623.5,2623.4,0.00117035]
[1724334006854,5.14578,2623.5,2623.4,0.00117035]
[1724334007036,4.19308,2623.5,2623.4,0.00117035]
[1724334007442,5.14578,2623.5,2623.4,0.00117035]
[1724334007643,12.62429978,2623.5,2623.4,0.00117035]
[1724334007847,13.00799978,2623.5,2623.4,0.00117035]
[1724334008146,10.52948,2623.5,2623.4,0.00117035]
[1724334008355,13.00733884,2623.5,2623.4,0.00117035]
[1724334008550,10.52948,2623.5,2623.4,0.00117035]
[1724334008939,15.43618,2623.5,2623.4,0.00117035]
[1724334009349,18.39983305,2623.5,2623.4,0.00117035]
[1724334009551,15.43618,2623.5,2623.4,0.00117035]
[1724334010449,10.43618,2623.5,2623.4,0.00117035]
[1724334010647,15.43618,2623.5,2623.4,0.00117035]
[1724334011849,14.48348,2623.5,2623.4,0.00117035]
[1724334013344,9.48348,2623.5,2623.4,0.00117035]
[1724334013551,0.38108,2623.5,2623.4,0.00117035]
[1724334013748,2.86016553,2623.5,2623.4,0.00117035]
[1724334013944,2.47908553,2623.6,2623.4,0.00117035]
[1724334014254,0.38108,2623.5,2623.4,0.00117035]
[1724334015041,2.47908553,2623.6,2623.4,0.00117035]
[1724334015042,2.86015553,2623.6,2623.4,0.00117035]
[1724334015241,2.86015553,2623.6,2623.4,0.38225035]
[1724334015242,0.38107,2623.6,2623.4,0.38225035]
[1724334015442,2.47908553,2623.7,2623.5,4.19307]
[1724334015443,2.86013553,2623.7,2623.5,4.19307]
[1724334015640,0.38106,2623.6,2623.4,0.38225035]
[1724334015842,2.86012553,2623.8,2623.6,0.38106]
[1724334016150,0.38105,2623.7,2623.5,0.38107]
[1724334016454,2.86013553,2623.8,2623.6,0.38106]
[1724334016751,0.38106,2623.6,2623.4,0.38225035]
[1724334016948,0.95258,2623.9,2623.4,0.38225035]
[1724334016949,0.38108,2623.5,2623.4,0.38225035]
[1724334017252,2.86014553,2623.7,2623.5,0.38108]
[1724334017442,2.47908553,2623.7,2623.4,0.00117035]
[1724334017647,11.00665305,2624.0,2623.4,0.00117035]
[1724334017648,1.33378,2623.5,2623.4,0.00117035]
[1724334017849,3.81286553,2623.5,2623.4,0.00117035]
[1724334018049,0.38108,2623.5,2623.4,0.00117035]
[1724334019349,2.47908553,2623.7,2623.4,0.00117035]
[1724334019659,0.38107,2623.6,2623.4,0.00117035]
[1724334019959,2.86012553,2623.8,2623.4,0.00117035]
[1724334020145,2.47908553,2623.8,2623.4,0.00117035]
[1724334020351,3.43165553,2623.9,2623.4,0.00117035]
[1724334020554,0.38107,2623.6,2623.4,0.38225035]
[1724334020852,0.38106,2623.7,2623.5,0.38108]
[1724334021051,0.38106,2623.7,2623.4,0.00117035]
[1724334021249,2.47908553,2623.8,2623.4,4.19426035]
[1724334021555,0.38108,2623.5,2623.4,0.00117035]
[1724334021755,2.47908553,2623.7,2623.4,0.00117035]
[1724334021959,2.47908553,2623.7,2623.5,0.38108]
[1724334022255,2.86012553,2623.8,2623.6,0.38106]
[1724334022657,0.38105,2623.7,2623.4,0.00117035]
[1724334022849,0.38105,2623.7,2623.4,3.20897035]
[1724334023045,2.86012553,2623.8,2623.6,0.38105]
[1724334023247,0.38104,2623.8,2623.6,0.38105]
[1724334023446,0.38104,2623.8,2623.4,0.00117035]
[1724334023447,2.86011553,2623.9,2623.7,0.38105]
[1724334023644,2.47908553,2624.0,2623.4,3.20897035]
[1724334023850,2.86008553,2624.0,2623.8,0.38102]
[1724334024065,2.86008553,2624.0,2623.9,0.7122]
[1724334024357,0.38106,2623.6,2623.4,0.38225035]
[1724334024549,0.38106,2623.6,2623.5,0.7122]
[1724334024855,2.48325764,2623.8,2623.5,0.7122]
[1724334025057,2.86431764,2623.6,2623.5,0.7122]
[1724334025360,0.38106,2623.6,2623.5,0.7122]
[1724334025547,2.48325764,2623.8,2623.6,0.38106]
[1724334025753,2.48325764,2623.8,2623.7,0.38105]
[1724334025949,2.86429764,2623.8,2623.6,4.54615]
[1724334026151,2.86429764,2623.8,2623.6,0.73495]
[1724334026353,2.86429764,2623.8,2623.6,4.54615]
[1724334026550,2.48325764,2623.8,2623.6,4.1651]
[1724334026862,2.48325764,2623.9,2623.8,0.38103]
[1724334027161,2.86426764,2624.0,2623.8,3.58883]
[1724334027350,2.48325764,2624.0,2623.9,0.38102]
[1724334027557,0.38099,2624.1,2623.9,4.19221]
[1724334027755,0.381,2624.0,2623.8,3.58882]
[1724334027957,2.48325764,2624.1,2624.0,0.381]
[1724334028157,2.48325764,2624.2,2624.1,0.38099]
[1724334028356,4.089,2624.4,2624.3,0.38096]
[1724334028357,2.48325764,2624.4,2624.3,0.38096]
[1724334028564,2.48325764,2624.5,2624.4,0.38095]
[1724334028758,0.00571799,2624.6,2624.4,5.38095]
[1724334028759,2.48897563,2624.6,2624.4,5.38095]
[1724334029056,2.48897563,2624.6,2624.5,4.19133]
[1724334029362,0.00571799,2624.6,2624.5,0.38093]
[1724334029556,0.00571799,2624.6,2624.5,9.19133]
[1724334030248,0.00433272,2624.8,2624.7,0.3809]
[1724334030458,0.00433272,2624.8,2624.7,3.59254465]
[1724334030657,0.00433272,2624.8,2624.7,12.40214465]
[1724334030859,6.07186764,2625.4,2625.1,0.38084]
[1724334031057,5.69105764,2625.4,2625.2,0.74342]
[1724334031263,3.2078,2625.4,2625.3,0.38082]
[1724334031561,0.38649799,2625.6,2625.3,4.18961]
[1724334031756,0.009343,2625.6,2625.4,0.3808]
[1724334031947,0.009343,2625.6,2625.2,0.3626]
[1724334031948,0.009343,2625.6,2625.2,4.3166]
[1724334032149,0.009343,2625.6,2625.4,0.38079]
[1724334032355,0.009343,2625.6,2625.2,0.3626]
[1724334032551,0.38079,2625.5,2625.2,0.3626]
[1724334033069,0.390123,2625.6,2625.2,4.55223]
[1724334033263,0.390123,2625.6,2625.2,0.74343]
[1724334033460,0.009343,2625.6,2625.2,0.3626]
[1724334033664,0.009343,2625.6,2625.0,0.00571799]
[1724334033665,3.2078,2625.5,2625.0,0.00571799]
[1724334033861,0.3808,2625.4,2625.0,0.38656799]
[1724334034056,3.2078,2625.5,2625.0,0.38656799]
[1724334034261,0.38081,2625.3,2625.0,0.38656799]
[1724334034455,0.38081,2625.4,2625.1,0.38084]
[1724334034960,0.3808,2625.4,2625.0,0.38656799]
[1724334035562,3.2078,2625.5,2625.0,0.38656799]
[1724334035756,0.38081,2625.4,2625.0,0.38656799]
[1724334036163,3.2078,2625.5,2625.0,0.00571799]
[1724334036164,3.58859,2625.5,2625.0,0.00571799]
[1724334036365,3.58859,2625.5,2625.2,0.38082]
[1724334036757,3.2078,2625.5,2625.4,0.3808]
[1724334037266,3.2078,2625.5,2625.0,0.00571799]
[1724334037453,3.2078,2625.5,2625.1,3.2078]
[1724334037659,3.2078,2625.5,2625.0,0.00571799]
[1724334038164,3.2078,2625.5,2625.1,3.2078]
[1724334038365,0.3808,2625.4,2625.2,0.38082]
[1724334038668,0.009343,2625.6,2625.5,0.38078]
[1724334039165,0.009343,2625.6,2625.5,4.18958]
[1724334040064,0.009343,2625.6,2625.5,4.54198]
[1724334040367,0.390113,2625.6,2625.5,0.3524]
[1724334041166,0.009343,2625.6,2625.5,0.3524]
[1724334041371,0.009343,2625.6,2625.5,0.73318]
[1724334041561,0.390113,2625.6,2625.5,0.3524]
[1724334042760,0.38078,2625.5,2625.4,3.2078]
[1724334042963,3.217143,2625.6,2625.0,0.35631799]
[1724334043162,0.38084,2625.1,2625.0,0.00571799]
[1724334043762,0.38081,2625.3,2625.0,0.00571799]
[1724334043965,0.3834,2625.4,2625.0,0.00571799]
[1724334044165,0.74169,2625.5,2625.2,0.38082]
[1724334044364,3.597923,2625.6,2625.3,0.3808]
[1724334044669,3.217143,2625.6,2625.2,3.2078]
[1724334044869,3.217143,2625.6,2625.4,0.38079]
[1724334045567,3.217143,2625.6,2625.5,0.38078]
[1724334045983,0.009343,2625.6,2625.5,4.18958]
[1724334046171,0.38071,2626.1,2625.8,0.38074]
[1724334046467,0.3807,2626.1,2625.8,0.38073]
[1724334046661,0.38069,2626.2,2625.6,0.3528]
[1724334048676,0.3807,2626.1,2625.8,0.38074]
[1724334048860,3.58306233,2626.3,2625.8,0.38074]
[1724334048861,0.38069,2626.2,2625.8,0.38074]
[1724334049567,0.38069,2626.2,2625.8,0.38073]
[1724334049972,0.38069,2626.2,2625.6,0.7162]
[1724334049973,0.38068,2626.2,2625.9,0.38071]
[1724334050171,0.75593233,2626.3,2625.9,0.38071]
[1724334050370,0.75593233,2626.3,2625.9,0.38072]
[1724334050972,0.00486233,2626.3,2625.8,3.2078]
[1724334051174,0.38068,2626.2,2625.6,0.7162]
[1724334051474,0.38553233,2626.3,2625.8,3.2078]
[1724334051971,0.00486233,2626.3,2626.0,0.38071]
[1724334052175,0.38553233,2626.3,2626.0,0.38071]
[1724334052365,0.38553233,2626.3,2625.9,0.38072]
[1724334053271,0.00486233,2626.3,2625.8,3.2078]
[1724334053485,0.00486233,2626.3,2625.6,0.7162]
[1724334053676,0.35866233,2626.3,2625.6,0.7162]
[1724334053883,0.38072,2626.0,2625.6,1.09697]
[1724334054173,0.7276,2626.2,2625.6,0.7162]
[1724334054675,0.38073,2625.9,2625.6,1.09697]
[1724334054970,0.7276,2626.2,2625.6,0.7162]
[1724334054971,0.95175,2626.1,2625.6,0.7162]
[1724334055166,0.95178,2626.0,2625.2,0.7327]
[1724334055366,0.38079,2625.5,2625.0,0.38656799]
[1724334055566,0.38079,2625.5,2625.1,0.37]
[1724334055762,0.38081,2625.4,2625.1,0.37]
[1724334055966,0.95189,2625.7,2625.0,0.00571799]
[1724334056167,0.38081,2625.4,2625.0,0.00571799]
[1724334056969,0.7104,2625.6,2625.0,0.00571799]
[1724334057167,1.09117,2625.6,2625.1,3.2078]
[1724334057364,1.09117,2625.6,2625.1,3.58863]
[1724334057778,1.09117,2625.6,2625.1,0.38083]
[1724334058380,0.7104,2625.6,2625.0,0.00571799]
[1724334058580,0.38079,2625.5,2625.0,0.38656799]
[1724334059079,0.7104,2625.6,2625.0,3.21351799]
[1724334059280,1.09117,2625.6,2625.1,0.38084]
[1724334059481,1.09117,2625.6,2625.2,0.38083]
[1724334059774,1.09117,2625.6,2625.1,0.38084]
[1724334059980,0.7104,2625.6,2625.0,0.00571799]
[1724334060375,1.09118,2625.6,2625.1,0.38083]
[1724334060676,0.7104,2625.6,2625.0,3.21351799]
[1724334060874,0.38084,2625.1,2625.0,0.00571799]
[1724334061177,0.38083,2625.2,2625.0,0.00571799]
[1724334061475,0.38084,2625.1,2625.0,0.00571799]
[1724334061682,0.38083,2625.2,2625.0,0.00571799]
[1724334061865,0.38082,2625.3,2625.0,0.00571799]
[1724334062274,0.3808,2625.4,2625.1,0.38084]
[1724334062480,0.38079,2625.5,2625.2,0.38083]
[1724334063180,0.7104,2625.6,2625.1,3.2078]
[1724334063379,0.7104,2625.6,2625.4,0.38079]
[1724334063564,0.7104,2625.6,2625.2,0.3541]
[1724334063565,0.7104,2625.6,2625.3,0.3808]
[1724334063765,0.38076,2625.7,2625.4,0.38079]
[1724334063966,0.7323,2625.9,2625.5,0.38078]
[1724334064168,0.38072,2625.9,2625.6,0.38076]
[1724334064375,3.2078,2626.2,2625.6,0.38076]
[1724334064376,0.38072,2626.0,2625.7,0.38075]
[1724334064574,0.38073,2625.9,2625.6,0.75076]
[1724334064983,0.3807,2626.1,2625.6,0.37]
[1724334065172,0.3807,2626.1,2625.8,0.38073]
[1724334065479,1.11299,2626.2,2625.8,0.38073]
[1724334065677,0.3807,2626.1,2625.8,0.38073]
[1724334065875,0.00486233,2626.3,2625.8,0.38073]
[1724334065876,0.00486233,2626.3,2625.8,3.2078]
[1724334066079,0.00486233,2626.3,2626.1,3.58849]
[1724334066686,0.00486233,2626.3,2626.2,0.38068]
[1724334066873,0.00486233,2626.3,2626.2,0.3772]
[1724334067182,0.00486233,2626.3,2626.2,0.75788]
[1724334067484,0.00486233,2626.3,2626.2,8.51988]
[1724334067878,0.00486233,2626.3,2626.2,13.51988]
[1724334068181,0.00486233,2626.3,2626.2,13.89288]
[1724334068878,0.38059,2626.9,2626.3,3.808]
[1724334069190,0.3517,2627.1,2626.4,0.38064]
[1724334069674,0.38059,2626.9,2626.4,0.38064]
[1724334069881,0.38059,2626.9,2626.3,0.3745]
[1724334069882,0.38410662,2626.9,2626.5,0.38063]
[1724334070074,0.00923461,2626.9,2626.5,0.38063]
[1724334070280,0.00923461,2626.9,2626.4,3.21351799]
[1724334070281,0.00923461,2626.9,2626.6,0.38062]
[1724334070483,0.00923461,2626.9,2626.6,0.38546768]